bitfinex/quotes_SOLUSD_20250226
["timestamp","ask_amount","ask_price","bid_price","bid_amount"]
[1740579104913,0.03,135.77,135.68,219.1]
[1740579105718,0.03,135.77,135.69,0.56864628]
[1740579105919,0.03,135.77,135.69,219.66864628]
[1740579106123,0.03,135.77,135.72,0.14216157]
[1740579106320,0.03,135.77,135.72,219.24216157]
[1740579107335,0.03,135.77,135.7,18.64964886]
[1740579107336,0.03,135.77,135.7,82.9]
[1740579107527,0.03,135.77,135.68,136.2]
[1740579107528,9.19395163,135.76,135.65,238.2517]
[1740579108630,7.3664,135.75,135.65,238.2517]
[1740579108827,0.03,135.77,135.72,0.14216157]
[1740579109036,0.03,135.78,135.76,21.56864628]
[1740579109244,0.063,135.79,135.78,0.14216157]
[1740579109436,0.063,135.79,135.76,239.1]
[1740579109612,0.063,135.79,135.77,2.11473994]
[1740579110026,0.063,135.79,135.77,0.56864628]
[1740579110644,0.063,135.79,135.76,230.86]
[1740579111019,0.063,135.79,135.77,0.56864628]
[1740579111733,0.063,135.79,135.76,230.86]
[1740579111933,0.063,135.79,135.76,82.9]
[1740579112323,0.063,135.79,135.71,11.72]
[1740579112324,0.063,135.79,135.71,94.62]
[1740579112848,0.063,135.79,135.71,82.9]
[1740579113061,6.4871,135.77,135.67,219.1]
[1740579113259,6.4871,135.77,135.67,82.9]
[1740579113549,15.68105163,135.77,135.67,219.1]
[1740579113954,6.4871,135.77,135.68,19.21829514]
[1740579114453,6.4871,135.77,135.68,238.31829514]
[1740579115833,15.68105163,135.77,135.68,82.9]
[1740579116158,23.04645163,135.77,135.68,82.9]
[1740579116451,15.68105163,135.77,135.68,82.9]
[1740579117348,0.14216157,135.76,135.68,82.9]
[1740579117534,18.79181043,135.76,135.68,82.9]
[1740579118755,15.68105163,135.77,135.68,82.9]
[1740579118958,23.04645163,135.77,135.68,82.9]
[1740579119126,15.68105163,135.77,135.69,0.56864628]
[1740579119327,13.8525,135.77,135.69,219.1]
[1740579120133,23.04645163,135.77,135.69,82.9]
[1740579120339,27.98576206,135.76,135.65,219.1]
[1740579120535,9.19395163,135.75,135.65,82.9]
[1740579120734,7.3664,135.75,135.65,82.9]
[1740579122056,6.4871,135.77,135.66,21.62359628]
[1740579122259,1.6923,135.78,135.67,0.14216157]
[1740579122756,1.6923,135.78,135.7,0.56864628]
[1740579122961,0.03,135.78,135.75,0.14216157]
[1740579123142,0.03,135.78,135.75,219.24216157]
[1740579123331,0.03,135.78,135.77,0.14216157]
[1740579123753,0.03,135.78,135.75,219.1]
[1740579123958,0.03,135.78,135.76,0.56864628]
[1740579124333,0.03,135.78,135.76,219.66864628]
[1740579124751,0.03,135.78,135.77,18.79181043]
[1740579124949,0.03,135.78,135.77,20.33772399]
[1740579125163,0.03,135.78,135.76,219.1]
[1740579125342,0.03,135.78,135.77,0.14216157]
[1740579126560,0.03,135.78,135.77,19.21829514]
[1740579126940,0.03,135.78,135.77,20.76422788]
[1740579127339,0.03,135.78,135.77,0.14216157]
[1740579127946,0.03,135.78,135.77,247.22965321]
[1740579128141,0.03,135.78,135.77,238.31829514]
[1740579128453,0.063,135.87,135.81,0.14216157]
[1740579128647,0.063,135.87,135.86,0.14216157]
[1740579128839,0.063,135.87,135.86,219.66864628]
[1740579129163,0.063,135.87,135.86,219.24216157]
[1740579129762,0.063,135.87,135.84,102.9]
[1740579129944,0.063,135.87,135.84,82.9]
[1740579130259,0.063,135.87,135.85,0.56864628]
[1740579130463,0.063,135.87,135.86,20.14216157]
[1740579131051,0.063,135.87,135.86,0.14216157]
[1740579131267,0.063,135.87,135.85,0.14216157]
[1740579131649,0.063,135.87,135.85,0.56864628]
[1740579132054,0.063,135.87,135.85,0.14216157]
[1740579132452,0.063,135.87,135.83,11.34]
[1740579133170,0.063,135.87,135.81,219.1]
[1740579134138,0.063,135.87,135.81,82.9]
[1740579134340,0.063,135.91,135.88,1.0]
[1740579134571,0.063,135.91,135.89,11.42]
[1740579134779,0.063,135.91,135.9,0.14216157]
[1740579134977,0.063,135.91,135.89,230.52]
[1740579135281,0.063,135.91,135.9,0.56864628]
[1740579135489,0.063,135.91,135.9,0.14216157]
[1740579135980,0.063,135.91,135.9,2.11325735]
[1740579136150,0.063,135.91,135.9,0.56864628]
[1740579136344,0.063,135.91,135.9,20.7627328]
[1740579137264,0.063,135.91,135.9,19.21829514]
[1740579137451,0.063,135.91,135.9,20.7627233]
[1740579137653,78.789,135.99,135.93,20.28432314]
[1740579137851,7.416,136.0,135.93,103.18432314]
[1740579138370,7.416,136.0,135.92,136.48432314]
[1740579138371,18.64964886,135.97,135.88,82.9]
[1740579138574,97.43864886,135.97,135.88,82.9]
[1740579138962,18.64964886,135.95,135.88,82.9]
[1740579139263,16.14964886,135.95,135.88,82.9]
[1740579139666,7.9613,135.93,135.86,82.9]
[1740579139878,86.7503,135.93,135.83,230.48]
[1740579140171,86.7503,135.93,135.84,0.28432314]
[1740579140466,86.7503,135.93,135.84,18.64964886]
[1740579140775,86.7503,135.93,135.85,0.28432314]
[1740579140983,86.7503,135.93,135.87,20.28432314]
[1740579141150,7.9613,135.93,135.87,238.033972]
[1740579141751,7.9613,135.93,135.88,0.063]
[1740579142575,15.3181,135.93,135.88,0.063]
[1740579143653,33.7099,135.93,135.88,0.063]
[1740579144050,15.3181,135.93,135.88,0.063]
[1740579144365,15.3181,135.93,135.88,82.963]
[1740579146710,15.3181,135.93,135.89,0.28432314]
[1740579146869,7.3568,135.93,135.89,0.28432314]
[1740579147178,7.3556,135.95,135.89,83.18432314]
[1740579147855,25.7447,135.95,135.89,82.9]
[1740579148263,25.7409,135.97,135.89,82.9]
[1740579148468,104.5299,135.97,135.89,82.9]
[1740579149584,18.64964886,135.96,135.88,0.063]
[1740579149883,0.42648471,135.91,135.88,0.063]
[1740579150086,78.789,135.9,135.88,0.063]
[1740579150258,7.3588,135.89,135.88,0.063]
[1740579151192,25.7485,135.93,135.88,0.063]
[1740579151780,7.3567,135.93,135.88,0.063]
[1740579152169,0.03,135.99,135.92,7.92584628]
[1740579152352,0.03,135.99,135.92,227.02584628]
[1740579153680,0.03,135.99,135.95,18.933972]
[1740579153985,0.03,135.99,135.95,238.033972]
[1740579154293,0.03,135.99,135.97,0.28432314]
[1740579154457,0.03,135.99,135.97,83.18432314]
[1740579154658,0.03,135.99,135.97,219.38432314]
[1740579154858,0.03,135.99,135.97,83.18432314]
[1740579155860,0.03,135.99,135.98,7.63832314]
[1740579156060,0.03,135.99,135.98,83.18432314]
[1740579156284,0.03,135.99,135.98,82.9]
[1740579158276,0.03,135.99,135.93,94.0]
[1740579158598,0.03,135.99,135.93,82.9]
[1740579158970,0.03,135.99,135.93,90.2566]
[1740579159299,0.03,135.99,135.93,82.9]
[1740579159785,78.819,135.99,135.9,82.9]
[1740579160162,7.354,135.98,135.9,90.2581]
[1740579160363,7.354,135.98,135.9,82.9]
[1740579160770,7.354,135.98,135.9,90.2583]
[1740579160970,7.354,135.98,135.9,82.9]
[1740579161285,86.143,135.98,135.9,82.9]
[1740579161713,7.354,135.98,135.89,143.6387]
[1740579162470,7.354,135.98,135.9,18.933972]
[1740579162661,7.354,135.98,135.9,238.033972]
[1740579162968,25.739,135.98,135.9,82.9]
[1740579164099,18.64964886,135.95,135.88,0.063]
[1740579164398,97.43864886,135.95,135.88,0.063]
[1740579164597,7.3561,135.94,135.88,0.063]
[1740579165806,78.789,135.95,135.88,0.063]
[1740579166474,78.819,135.95,135.88,0.063]
[1740579166976,25.7465,135.94,135.88,0.063]
[1740579168603,18.64964886,135.93,135.88,0.063]
[1740579168818,18.64964886,135.91,135.88,0.063]
[1740579169098,25.7503,135.92,135.88,0.063]
[1740579169797,7.3572,135.92,135.88,0.063]
[1740579170186,78.819,135.95,135.88,0.063]
[1740579170187,7.3561,135.94,135.88,0.063]
[1740579170386,7.1061,135.94,135.88,0.063]
[1740579170588,0.03,135.95,135.89,0.56864628]
[1740579170787,7.3858,135.95,135.89,0.56864628]
[1740579171094,7.3858,135.95,135.89,7.92714628]
[1740579171284,0.03,135.95,135.91,0.56864628]
[1740579171490,0.03,135.95,135.9,0.28432314]
[1740579171679,0.03,135.95,135.89,219.1]
[1740579172381,18.67964886,135.95,135.88,0.063]
[1740579172600,18.64964886,135.9,135.88,0.063]
[1740579172797,7.3588,135.89,135.88,0.063]
[1740579173482,1.0,135.93,135.88,0.063]
[1740579173483,0.03,135.95,135.92,20.0]
[1740579173674,0.03,135.95,135.92,102.9]
[1740579174008,0.03,135.95,135.88,278.7893]
[1740579174009,0.03,135.95,135.88,0.063]
[1740579174181,0.03,135.95,135.88,83.10516157]
[1740579174498,0.03,135.95,135.9,0.14216157]
[1740579174697,0.03,135.95,135.9,83.04216157]
[1740579174899,0.03,135.95,135.91,7.78428471]
[1740579175205,0.03,135.95,135.91,90.68428471]
[1740579178186,0.03,135.95,135.93,0.42648471]
[1740579178494,0.03,135.95,135.94,18.79181043]
[1740579178806,0.03,135.95,135.94,219.66864628]
[1740579179412,0.03,135.95,135.94,238.31829514]
[1740579180290,0.03,135.95,135.94,245.67439514]
[1740579180687,78.412,136.04,135.95,0.42648471]
[1740579180888,78.412,136.04,135.95,83.32648471]
[1740579181520,18.64964886,136.03,135.95,82.9]
[1740579181704,18.64964886,136.03,135.94,7.3561]
[1740579181705,0.56864628,136.02,135.94,7.3561]
[1740579182218,0.56864628,136.02,135.91,101.2934]
[1740579182393,18.64964886,136.0,135.92,7.3572]
[1740579182690,85.7644,136.01,135.92,7.3572]
[1740579183114,78.412,136.01,135.93,0.56864628]
[1740579183814,78.412,136.01,135.95,20.0]
[1740579184015,78.412,136.03,135.95,102.9]
[1740579184320,78.412,136.03,135.96,7.3551]
[1740579185008,78.412,136.03,135.97,0.56864628]
[1740579185207,78.412,136.03,135.96,90.2551]
[1740579185597,78.412,136.03,135.97,0.56864628]
[1740579186310,78.412,136.03,135.98,7.354]
[1740579186514,85.7623,136.05,135.98,7.354]
[1740579186733,6.3183,136.06,135.98,90.254]
[1740579187018,6.3183,136.06,135.99,0.56864628]
[1740579187395,78.412,136.07,136.0,18.64964886]
[1740579187602,78.412,136.07,136.01,0.56864628]
[1740579187825,0.03,136.09,136.01,219.66864628]
[1740579188029,0.03,136.09,136.01,230.16864628]
[1740579188330,0.03,136.09,136.03,0.56864628]
[1740579188625,0.03,136.09,136.02,7.3518]
[1740579188626,0.03,136.09,136.01,236.9523]
[1740579189209,0.03,136.09,136.02,0.56864628]
[1740579189618,0.03,136.09,136.02,83.46864628]
[1740579190526,0.03,136.09,136.02,90.82024628]
[1740579191299,0.03,136.09,136.02,83.46864628]
[1740579191499,0.03,136.09,136.02,82.9]
[1740579193333,0.56864628,136.05,135.95,82.9]
[1740579193508,18.64964886,136.03,135.95,82.9]
[1740579194036,18.64964886,136.01,135.91,82.9]
[1740579194234,18.64964886,135.99,135.89,82.9]
[1740579194401,18.64964886,135.96,135.89,82.9]
[1740579194605,78.412,135.96,135.89,20.0]
[1740579194815,78.412,135.96,135.88,0.063]
[1740579195730,18.64964886,135.95,135.88,0.063]
[1740579196231,18.64964886,135.93,135.88,0.063]
[1740579196416,7.3572,135.92,135.88,0.063]
[1740579196720,97.63029514,135.91,135.88,0.063]
[1740579197714,18.64964886,135.89,135.88,0.063]
[1740579198330,78.412,135.9,135.88,0.063]
[1740579198529,25.756,135.89,135.8,82.963]
[1740579198836,18.3842,135.99,135.83,1.0]
[1740579199131,18.3842,135.99,135.85,1.56864628]
[1740579199437,8.3524,136.01,135.88,20.56864628]
[1740579199610,7.3524,136.01,135.89,18.64964886]
[1740579199804,19.21829514,136.0,135.9,10.86]
[1740579200033,20.21829514,136.0,135.9,10.86]
[1740579200336,20.933972,136.0,135.9,10.86]
[1740579200629,18.64964886,135.95,135.86,219.1]
[1740579200831,18.64964886,135.95,135.86,0.42648471]
[1740579202404,0.56864628,135.94,135.88,0.063]
[1740579202610,0.28432314,135.92,135.88,0.063]
[1740579203242,1.28432314,135.9,135.8,0.063]
[1740579203546,18.64964886,135.87,135.8,0.063]
[1740579203710,18.64964886,135.85,135.8,0.063]
[1740579204518,7.3626,135.82,135.8,0.063]
[1740579204734,85.7746,135.82,135.8,0.063]
[1740579205145,97.06164886,135.81,135.8,0.063]
[1740579205350,97.345972,135.81,135.8,0.063]
[1740579205516,20.21829514,135.81,135.8,0.063]
[1740579205946,20.21829514,135.81,135.74,0.063]
[1740579205947,0.28432314,135.8,135.74,0.063]
[1740579206148,18.933972,135.78,135.74,0.063]
[1740579206520,26.01494886,135.78,135.74,0.063]
[1740579207240,137.32,135.86,135.74,0.063]
[1740579207241,7.3621,135.83,135.77,20.0]
[1740579207449,81.1,135.84,135.78,0.56864628]
[1740579207623,88.4618,135.84,135.77,20.0]
[1740579208334,18.3913,135.94,135.82,0.56864628]
[1740579208642,18.3913,135.94,135.85,0.56864628]
[1740579209056,7.3556,135.95,135.87,20.0]
[1740579209225,18.64964886,135.94,135.87,20.0]
[1740579209423,7.3556,135.95,135.86,20.0]
[1740579209634,18.64964886,135.94,135.86,20.0]
[1740579210044,7.3556,135.95,135.87,0.56864628]
[1740579210248,7.3556,135.95,135.89,20.0]
[1740579210649,87.4412,135.97,135.89,20.0]
[1740579210650,7.3551,135.96,135.89,20.0]
[1740579211754,18.64964886,135.95,135.89,20.0]
[1740579212449,7.3551,135.96,135.89,20.0]
[1740579213035,25.7428,135.96,135.89,20.0]
[1740579213753,25.7428,135.96,135.87,0.56864628]
[1740579214237,25.7428,135.96,135.89,20.0]
[1740579214437,18.64964886,135.95,135.88,0.063]
[1740579214752,7.3561,135.94,135.88,0.063]
[1740579215328,25.7465,135.94,135.88,0.063]
[1740579216458,0.28432314,135.92,135.8,219.1]
[1740579216648,25.756,135.89,135.8,82.9]
[1740579216831,7.3588,135.89,135.81,0.56864628]
[1740579217032,7.3588,135.89,135.85,0.14216157]
[1740579217338,7.3588,135.89,135.85,82.9]
[1740579217541,7.3588,135.89,135.79,82.9]
[1740579217542,18.64964886,135.88,135.79,82.9]
[1740579217740,99.74964886,135.88,135.8,0.56864628]
[1740579217941,99.74964886,135.88,135.82,20.0]
[1740579218139,99.74964886,135.88,135.79,82.9]
[1740579218140,18.64964886,135.86,135.79,82.9]
[1740579218354,18.64964886,135.86,135.78,219.26]
[1740579218355,99.74964886,135.86,135.78,219.26]
[1740579218728,25.7636,135.85,135.78,219.26]
[1740579219426,7.361,135.85,135.79,0.56864628]
[1740579219847,7.361,135.85,135.79,0.42648471]
[1740579220362,81.1,135.86,135.79,0.42648471]
[1740579221359,81.1,135.91,135.84,0.42648471]
[1740579221533,88.4568,135.93,135.85,0.14216157]
[1740579222552,81.1,135.93,135.88,0.56864628]
[1740579222737,7.3558,135.95,135.88,83.46864628]
[1740579223552,81.1,135.96,135.88,83.46864628]
[1740579223752,81.1,136.0,135.92,20.56864628]
[1740579223955,87.4683,136.02,135.92,103.46864628]
[1740579224139,81.1,136.02,135.92,103.46864628]
[1740579224345,88.4519,136.02,135.92,103.46864628]
[1740579224738,88.4519,136.02,135.92,110.82574628]
[1740579225758,26.00214886,136.01,135.92,103.46864628]
[1740579226440,81.38432314,136.0,135.92,20.0]
[1740579226738,0.28432314,135.98,135.89,82.9]
[1740579227384,99.74964886,135.99,135.92,20.0]
[1740579227541,99.74964886,135.99,135.9,83.46864628]
[1740579227867,81.1,135.99,135.9,90.82644628]
[1740579228052,88.4535,135.99,135.9,83.46864628]
[1740579228253,81.1,135.99,135.93,20.0]
[1740579228564,18.64964886,136.01,135.93,20.0]
[1740579228739,18.64964886,136.01,135.93,102.9]
[1740579229341,26.00214886,136.01,135.93,102.9]
[1740579230042,26.00214886,136.01,135.93,110.2567]
[1740579230458,88.452,136.02,135.94,0.56864628]
[1740579230766,88.452,136.02,135.94,83.46864628]
[1740579231566,88.452,136.02,135.94,90.82454628]
[1740579232366,18.64964886,136.0,135.91,88.913]
[1740579232557,0.28432314,135.97,135.88,82.9]
[1740579232760,18.79181043,136.0,135.88,90.2592]
[1740579232761,81.1,135.96,135.88,90.2592]
[1740579232956,18.64964886,135.95,135.88,90.2592]
[1740579233175,81.1,135.96,135.88,82.9]
[1740579233469,18.64964886,135.94,135.87,17.5198]
[1740579233673,18.64964886,135.92,135.86,82.9]
[1740579234547,99.74964886,135.92,135.84,7.3614]
[1740579234971,0.28432314,135.91,135.82,7.3626]
[1740579235149,99.74964886,135.92,135.83,0.56864628]
[1740579235351,99.74964886,135.92,135.82,7.3626]
[1740579235875,30.79271758,184.69,135.83,9.73209647]
[1740579235876,1.0,135.99,135.83,9.73209647]
[1740579236074,18.64964886,135.97,135.87,20.0]
[1740579236277,18.64964886,135.95,135.87,82.9]
[1740579236959,18.64964886,135.95,135.88,7.3594]
[1740579237560,26.00534886,135.95,135.88,7.3594]
[1740579237957,18.64964886,135.93,135.87,0.063]
[1740579238375,99.74964886,135.93,135.87,0.063]
[1740579238969,18.64964886,135.91,135.87,0.063]
[1740579239288,81.1,135.9,135.87,0.063]
[1740579239471,18.64964886,135.89,135.87,0.063]
[1740579239673,99.74964886,135.89,135.87,0.063]
[1740579240279,101.31829514,135.88,135.87,0.063]
[1740579240860,107.393372,135.88,135.87,0.063]
[1740579241056,81.1,135.88,135.87,0.063]
[1740579241468,81.1,135.98,135.91,0.56864628]
[1740579241664,7.3534,135.99,135.91,11.12864628]
[1740579241976,14.73964396,136.02,135.94,20.0]
[1740579242158,7.38764396,136.02,135.94,20.0]
[1740579242364,7.38764396,136.02,135.95,0.56864628]
[1740579242558,14.73964396,136.02,135.95,0.56864628]
[1740579242881,14.73964396,136.02,135.94,20.0]
[1740579243072,18.64964886,136.01,135.94,20.0]
[1740579243274,18.64964886,135.99,135.89,17.8987]
[1740579243477,0.28432314,135.98,135.89,10.54]
[1740579243678,0.28432314,135.98,135.88,7.92784628]
[1740579243874,0.28432314,135.98,135.87,219.163]
[1740579243875,0.28432314,135.96,135.87,82.963]
[1740579244073,18.64964886,135.95,135.87,0.063]
[1740579244372,18.64964886,135.93,135.87,0.063]
[1740579245183,7.3556,135.95,135.88,20.0]
[1740579245483,18.64964886,135.94,135.88,20.0]
[1740579245789,26.00524886,135.95,135.88,20.0]
[1740579246285,7.3556,135.95,135.88,20.0]
[1740579246592,81.1,135.94,135.88,27.3593]
[1740579246763,81.1,135.94,135.88,20.0]
[1740579246959,81.1,135.94,135.88,27.3593]
[1740579247678,88.4564,135.94,135.88,20.0]
[1740579247986,81.1,135.94,135.88,27.3593]
[1740579248790,88.4564,135.94,135.88,27.3593]
[1740579249289,81.1,135.94,135.88,7.3593]
[1740579249660,81.1,135.94,135.88,27.3593]
[1740579249864,81.1,135.94,135.88,20.0]
[1740579250982,81.1,135.96,135.89,0.28432314]
[1740579251284,7.3542,135.98,135.92,20.0]
[1740579251462,18.64964886,135.96,135.87,82.963]
[1740579251667,0.03,135.94,135.9,20.0]
[1740579252263,99.77964886,135.94,135.87,0.063]
[1740579252473,81.1,135.93,135.88,20.0]
[1740579252998,81.1,135.93,135.89,20.0]
[1740579253286,0.14216157,135.88,135.87,0.063]
[1740579253490,25.7541,135.9,135.87,0.063]
[1740579253789,0.56864628,135.89,135.87,0.063]
[1740579253985,19.21829514,135.88,135.87,0.0001]
[1740579254187,40.21829514,135.88,135.87,0.0001]
[1740579254365,39.21829514,135.88,135.87,0.0001]
[1740579254566,40.21829514,135.88,135.87,0.0001]
[1740579255173,41.21829514,135.88,135.87,0.0001]
[1740579255371,48.57769514,135.88,135.87,0.0001]
[1740579255678,18.64964886,135.84,135.74,82.963]
[1740579256079,0.56864628,135.83,135.74,0.063]
[1740579256294,1.6503,135.85,135.74,20.063]
[1740579256504,1.6503,135.85,135.75,0.28432314]
[1740579256678,6.4295223,135.82,135.75,0.14216157]
[1740579256877,6.4295223,135.82,135.77,0.28432314]
[1740579257375,6.4295223,135.82,135.78,18.933972]
[1740579257683,6.4295223,135.82,135.81,19.21829514]
[1740579257878,4.7629223,135.82,135.81,246.2163914]
[1740579258072,3.9550884,135.87,135.86,18.933972]
[1740579258387,3.9550884,135.87,135.86,238.31829514]
[1740579259378,0.03,135.94,135.89,20.0]
[1740579259696,0.03,135.94,135.9,20.0]
[1740579260193,0.03,135.94,135.89,20.0]
[1740579260581,18.67964886,135.94,135.86,219.1]
[1740579260897,99.77964886,135.94,135.85,20.28432314]
[1740579261394,7.3567,135.93,135.87,0.28432314]
[1740579262097,7.3567,135.93,135.89,20.0]
[1740579263078,0.03,135.94,135.9,20.28432314]
[1740579263400,0.03,135.94,135.9,103.18432314]
[1740579264285,0.03,135.94,135.9,20.0]
[1740579264690,0.03,135.94,135.92,0.28432314]
[1740579265003,0.03,135.94,135.91,20.0]
[1740579265187,0.03,135.94,135.93,20.0]
[1740579265387,0.03,135.94,135.93,20.28432314]
[1740579265775,0.03,135.94,135.93,122.11829514]
[1740579266402,0.03,135.94,135.93,103.18432314]
[1740579266600,0.03,135.94,135.93,122.11829514]
[1740579267796,0.03,135.94,135.93,275.79499514]
[1740579268707,1.0950907,136.03,135.98,0.28432314]
[1740579270106,1.0950907,136.03,135.97,102.9]
[1740579270533,1.0950907,136.03,135.98,0.28432314]
[1740579272489,81.1,136.02,135.92,82.9]
[1740579272690,81.1,136.01,135.92,82.9]
[1740579272894,8.4464907,136.03,135.96,0.28432314]
[1740579273394,8.4464907,136.03,135.95,20.0]
[1740579273610,83.57442924,136.02,135.95,20.0]
[1740579273924,9.82622924,136.02,135.95,20.0]
[1740579274289,18.64964886,136.0,135.9,235.4071]
[1740579274508,81.1,135.99,135.9,92.9]
[1740579274705,81.1,135.99,135.93,20.0]
[1740579274917,81.1,135.99,135.91,0.28432314]
[1740579275115,81.1,135.99,135.9,90.2583]
[1740579275320,81.1,135.99,135.93,20.0]
[1740579276723,88.4535,135.99,135.93,20.0]
[1740579279408,88.4535,135.99,135.92,0.28432314]
[1740579279800,88.4535,135.99,135.92,82.9]
[1740579280609,88.4535,135.99,135.92,90.2571]
[1740579281018,81.1,135.99,135.93,0.28432314]
[1740579281922,81.1,135.99,135.93,18.933972]
[1740579282496,81.1,135.99,135.94,7.3561]
[1740579282918,7.352,136.02,135.97,20.0]
[1740579284922,25.7316,136.02,135.94,82.9]
[1740579285106,18.64964886,136.0,135.94,82.9]
[1740579285796,80.10082425,135.99,135.92,7.3567]
[1740579286203,7.354,135.98,135.92,7.3567]
[1740579286500,7.354,135.98,135.94,20.0]
[1740579287614,1.0950907,136.03,135.99,20.56864628]
[1740579287822,1.0950907,136.03,136.02,20.0]
[1740579289125,1.0950907,136.03,136.02,20.28432314]
[1740579289313,1.0950907,136.03,136.02,39.21829514]
[1740579289710,1.0950907,136.03,136.02,46.57009514]
[1740579290527,1.0950907,136.03,136.01,7.3522]
[1740579290899,1.0950907,136.03,136.0,7.63712314]
[1740579291130,1.0950907,136.03,135.98,7.354]
[1740579291710,7.5112907,136.03,135.94,226.519]
[1740579291907,87.61211495,136.03,135.94,90.319]
[1740579292306,87.61211495,136.03,135.97,20.0]
[1740579292612,9.07e-05,136.03,136.02,20.56864628]
[1740579292816,9.07e-05,136.03,136.02,259.86135087]
[1740579293118,9.07e-05,136.03,136.02,258.31829514]
[1740579294117,9.07e-05,136.03,136.02,110.82044628]
[1740579294314,9.07e-05,136.03,136.02,265.67009514]
[1740579294634,9.07e-05,136.04,136.03,19.21829514]
[1740579294928,9.07e-05,136.04,136.03,65.22129583]
[1740579295108,9.07e-05,136.04,136.03,20.76129583]
[1740579295508,9.07e-05,136.04,136.03,0.28432314]
[1740579295918,9.07e-05,136.04,136.03,20.76154958]
[1740579296721,9.07e-05,136.04,136.03,19.21829514]
[1740579297611,9.07e-05,136.04,136.02,82.9]
[1740579300025,9.07e-05,136.04,135.98,82.9]
[1740579300228,9.07e-05,136.04,135.98,219.1]
[1740579300430,9.07e-05,136.04,136.01,20.0]
[1740579301444,9.07e-05,136.04,135.99,82.9]
[1740579301819,9.07e-05,136.04,135.96,18.64964886]
[1740579302027,9.07e-05,136.04,135.96,101.54964886]
[1740579302437,9.07e-05,136.04,135.99,20.0]
[1740579302813,9.07e-05,136.04,136.0,38.933972]
[1740579303135,9.07e-05,136.04,136.0,20.0]
[1740579304227,9.07e-05,136.04,136.01,18.64964886]
[1740579304435,9.07e-05,136.04,136.01,101.54964886]
[1740579304737,9.07e-05,136.04,136.03,20.28432314]
[1740579304928,9.07e-05,136.04,136.03,103.18432314]
[1740579305123,9.07e-05,136.04,136.03,122.11829514]
[1740579306741,9.07e-05,136.04,136.03,102.9]
[1740579307735,9.07e-05,136.04,136.03,38.933972]
[1740579308042,9.07e-05,136.04,136.03,40.76157471]
[1740579308446,9.07e-05,136.04,136.03,259.86157471]
[1740579308618,9.07e-05,136.04,136.03,258.31829514]
[1740579309020,9.07e-05,136.04,136.03,265.66959514]
[1740579309430,9.07e-05,136.04,136.03,267.66959514]
[1740579309842,0.03,136.08,136.07,40.21829514]
[1740579310043,0.03,136.08,136.07,270.50065675]
[1740579310342,0.03,136.08,136.07,277.30739514]
[1740579310846,0.03,136.08,136.04,219.1]
[1740579311050,0.03,136.08,136.04,82.9]
[1740579311350,0.03,136.08,136.07,20.28432314]
[1740579311534,0.03,136.08,136.07,102.9]
[1740579311949,0.03,136.08,136.07,121.833972]
[1740579312259,0.03,136.08,136.07,258.31829514]
[1740579312550,0.03,136.09,136.08,19.21829514]
[1740579312943,0.03,136.09,136.08,231.66071781]
[1740579313268,0.03,136.09,136.08,229.11829514]
[1740579313426,0.03,136.09,136.08,82.9]
[1740579314866,0.03,136.22,136.11,20.56864628]
[1740579315148,0.03,136.25,136.21,1.56864628]
[1740579315327,47.33043195,136.31,136.25,39.21829514]
[1740579315520,47.33043195,136.31,136.25,258.31829514]
[1740579316239,47.33043195,136.31,136.25,20.0]